lending/lending_fUSD_20240621
["ID","MTS","AMOUNT","RATE_DAILY","PERIOD"]
[330068863,1718987438025,-3186.29266696,0.00021,4]
[330068868,1718987438067,-76618.0712965,0.00021,4]
[330068871,1718987438078,-2409.30368905,0.00021,4]
[330068873,1718987438090,-867.75448002,0.00021,4]
[330068878,1718987438130,-1644.2883817,0.00021,4]
[330068880,1718987438144,-442.25,0.00021,4]
[330068883,1718987438156,-44781.71431273,0.00021,4]
[330068888,1718987438841,-1513.35868036,0.00021,4]
[330068889,1718987438854,-800.0,0.00021,4]
[330068890,1718987438867,-14182.0,0.00021,4]
[330068891,1718987438880,-4708.34092168,0.00021,4]
[330068898,1718987440242,-660.11977562,0.00013082,2]
[330068900,1718987440254,-5810.36810595,0.00021,4]
[330068903,1718987440282,-28711.13187373,0.00021,4]
[330068904,1718987440296,-322.85018007,0.00021,4]
[330068905,1718987440329,-503.4787228,0.00021,4]
[330068906,1718987440343,-362.572002,0.00021,4]
[330068907,1718987440367,-3364.15,0.00021,4]
[330068908,1718987440381,-46406.674974,0.00021,4]
[330068909,1718987440394,-14365.96528816,0.00021,4]
[330068910,1718987440409,-1641.30252,0.00021,4]
[330068911,1718987440427,-303.27304,0.00021,4]
[330068912,1718987440440,-3017.256,0.00021,4]
[330068913,1718987440453,-3380.424834,0.00021,4]
[330068914,1718987440468,-630.36225548,0.00021,4]
[330068915,1718987440482,-3057.61921959,0.00021,4]
[330068916,1718987440588,-1079.800005,0.00021,4]
[330068917,1718987440602,-1937.26644223,0.00021,4]
[330068918,1718987440736,-778.64096614,0.00021,4]
[330068919,1718987440749,-27173.47925761,0.00021,4]
[330068920,1718987440762,-843.15773648,0.00021,4]
[330068921,1718987440816,-41869.65761458,0.00021,4]
[330068922,1718987440829,-10733.8579377,0.00021,4]
[330068923,1718987440841,-3250.0,0.00021,4]
[330068924,1718987440864,-140000.005,0.00021,4]
[330068925,1718987440877,-349.91550046,0.00021,4]
[330068926,1718987440894,-965.81134072,0.00021,4]
[330068927,1718987440904,-211.78496589,0.00021063,2]
[330068928,1718987440914,-180.0,0.00021163,2]
[330068929,1718987440924,-154.41,0.00021177,2]
[330068930,1718987440934,-394.93016847,0.00021177,2]
[330068931,1718987440953,-250.09015306,0.00021177,2]
[330068932,1718987440965,-108.42484694,0.00021227,2]
[330068936,1718987442604,-1229.69159329,0.00021227,2]
[330068937,1718987442615,-1134.31999994,0.00021227,2]
[330068938,1718987442627,-912.45,0.00021227,2]
[330068939,1718987442639,-506.363244,0.00021227,2]
[330068940,1718987442650,-517.03487054,0.00021227,2]
[330068941,1718987442672,-297.59077079,0.00021227,2]
[330068942,1718987442684,-1365.5162,0.00021227,2]
[330068943,1718987442732,-332.64456287,0.00021227,2]
[330068944,1718987442744,-567.63859501,0.00021227,2]
[330068945,1718987442755,-3028.32531662,0.00021227,2]
[330068946,1718987442765,-211.78496584,0.00021266,2]
[330068947,1718987442774,-150.0,0.0002128,2]
[330068948,1718987442783,-157.8,0.0002128,2]
[330068949,1718987442792,-151.96,0.0002128,2]
[330068950,1718987442801,-164.55,0.0002128,2]
[330068951,1718987442810,-150.0,0.00021342,2]
[330068952,1718987442819,-150.0,0.00021342,2]
[330068953,1718987442828,-150.0,0.00021342,2]
[330068954,1718987442836,-150.0,0.00021342,2]
[330068955,1718987442845,-150.0,0.00021342,2]
[330068956,1718987442855,-300.0,0.00021342,2]
[330068957,1718987442865,-301.37576212,0.00021369,2]
[330068958,1718987442875,-645.02032153,0.00021391,2]
[330068959,1718987442886,-211.78496584,0.00021469,2]
[330068960,1718987442896,-158.80388924,0.00021477,2]
[330068961,1718987442906,-1351.43744345,0.00021478,2]
[330068962,1718987442916,-452.55229448,0.0002158,2]
[330068963,1718987442937,-726.09123552,0.0002158,2]
[330068964,1718987442952,-1786.0,0.00021585,2]
[330068965,1718987442962,-645.02032153,0.00021605,2]
[330068966,1718987442971,-366.0285791,0.00021643,2]
[330068967,1718987442981,-678.48,0.00021644,2]
[330068968,1718987442991,-211.78496584,0.00021672,2]
[330068969,1718987443000,-150.0,0.00021687,2]
[330068970,1718987443010,-437.90975551,0.00021699,2]
[330068971,1718987443019,-500.0,0.000217,2]
[330068972,1718987443028,-200.0,0.000217,2]
[330068973,1718987443038,-500.0,0.00021741,2]
[330068974,1718987443047,-688.89348887,0.00021757,2]
[330068975,1718987443056,-150.0,0.00021758,2]
[330068976,1718987443066,-150.0,0.00021798,2]
[330068977,1718987443076,-226.10017698,0.00021799,2]
[330068978,1718987443086,-363.71116501,0.00021799,5]
[330068979,1718987443095,-522.97196664,0.00021799,2]
[330068980,1718987443221,-546.44447906,0.00021799,2]
[330068981,1718987443231,-538.69650594,0.00021799,2]
[330068982,1718987443242,-7065.05349406,0.00021799,2]
[330068983,1718987443252,-50257.09602063,0.000218,2]
[330068984,1718987443298,-22.11238345,0.000218,2]
[330068985,1718987443309,-31373.78083539,0.000218,2]
[330068987,1718987445713,-536.415,0.00012359,2]
[330068988,1718987445791,-600.62583817,0.00012359,2]
[330068989,1718987445804,-1284.1755862,0.00012359,2]
[330068990,1718987445816,-684.5738653,0.00012359,2]
[330068991,1718987445827,-345.95893679,0.00021477,2]
[330068992,1718987445837,-378.479245,0.00021799,2]
[330068993,1718987445847,-27056.58502908,0.000218,2]
[330068994,1718987445860,-1753.85498398,0.000218,2]
[330068995,1718987445876,-541.19808586,0.000218,2]
[330068996,1718987445887,-5530.06801467,0.000218,2]
[330068997,1718987445900,-544.91435594,0.000218,2]
[330068998,1718987445912,-16012.01944914,0.000218,2]
[330068999,1718987445964,-432.3738514,0.000218,2]
[330069000,1718987445976,-378.25350976,0.000218,2]
[330069001,1718987445987,-691.03903521,0.000218,2]
[330069002,1718987445999,-923.64272275,0.000218,2]
[330069003,1718987446010,-307.44854805,0.000218,2]
[330069004,1718987446045,-960.10057905,0.000218,2]
[330069005,1718987446056,-534.16021158,0.000218,2]
[330069006,1718987446069,-1380.30322781,0.000218,2]
[330069007,1718987446082,-453.46218221,0.000218,2]
[330069008,1718987446094,-760.9013701,0.000218,2]
[330069009,1718987446106,-581.71067117,0.000218,2]
[330069010,1718987446118,-497.91097492,0.000218,2]
[330069011,1718987446130,-709.81957942,0.000218,2]
[330069012,1718987446142,-20981.80024993,0.000218,2]
[330069013,1718987446154,-3649.03273119,0.000218,2]
[330069014,1718987446166,-98457.26287731,0.000218,2]
[330069015,1718987446175,-176.60365254,0.000218,2]
[330069016,1718987446186,-918.80279174,0.00021816,2]
[330069017,1718987446198,-176.47864197,0.00021817,2]
[330069018,1718987446208,-2597.45695134,0.00021817,2]
[330069019,1718987446218,-178.16282074,0.00021817,2]
[330069020,1718987446228,-182.04870981,0.00021817,2]
[330069021,1718987446238,-659.86897458,0.00021817,2]
[330069022,1718987446248,-5241.63852914,0.00021817,2]
[330069023,1718987446258,-368.93545364,0.00021817,2]
[330069024,1718987446268,-173.74842146,0.00021847,2]
[330069025,1718987446281,-155.0,0.00021848,2]
[330069026,1718987446293,-187.89378223,0.00021848,2]
[330069027,1718987446303,-514.88,0.00021849,2]
[330069028,1718987446315,-150.0,0.00021854,2]
[330069029,1718987446325,-155.0,0.00021856,2]
[330069030,1718987446334,-163.5767579,0.00021857,2]
[330069031,1718987446344,-482.76727412,0.00021857,2]
[330069032,1718987446354,-283.44364674,0.00021858,2]
[330069033,1718987446364,-155.0,0.00021859,2]
[330069034,1718987446375,-155.0,0.0002186,2]
[330069035,1718987446385,-364.67222398,0.0002186,2]
[330069036,1718987446395,-155.0,0.0002186,2]
[330069037,1718987446405,-269.20894973,0.00021861,2]
[330069038,1718987446425,-155.0,0.00021863,2]
[330069039,1718987446435,-155.0,0.00021863,2]
[330069040,1718987446448,-491.4546726,0.00021874,2]
[330069041,1718987446458,-491.4546726,0.00021874,2]
[330069042,1718987446469,-20368.5270369,0.00021875,2]
[330069043,1718987446479,-211.78496584,0.00021875,2]
[330069044,1718987446489,-155.0,0.00021877,2]
[330069045,1718987446499,-339.36468135,0.00021877,2]
[330069046,1718987446509,-1262.77288771,0.00021877,2]
[330069047,1718987446519,-235.16032657,0.00021877,2]
[330069048,1718987446529,-326.69444584,0.00021878,2]
[330069049,1718987446538,-163.56645458,0.00021878,2]
[330069050,1718987446548,-217.79404424,0.00021878,2]
[330069051,1718987446558,-3963.22039009,0.00021878,2]
[330069052,1718987446568,-235.16032657,0.00021879,2]
[330069053,1718987446578,-158.21632429,0.00021879,2]
[330069054,1718987446588,-2198.0801445,0.00021879,2]
[330069055,1718987446598,-158.21632429,0.00021879,2]
[330069056,1718987446608,-155.0,0.0002188,2]
[330069057,1718987446618,-526.28955324,0.0002188,2]
[330069058,1718987446628,-202.40067256,0.0002188,2]
[330069059,1718987446638,-304.53512702,0.00021881,2]
[330069060,1718987446647,-234.36187444,0.00021881,2]
[330069061,1718987446657,-155.0,0.00021882,2]
[330069062,1718987446667,-155.0,0.00021882,2]
[330069063,1718987446677,-20368.5270369,0.0002189,2]
[330069064,1718987446687,-1780.7288628,0.0002189,2]
[330069065,1718987446700,-13473.62,0.000219,4]
[330069066,1718987446710,-2299.21060653,0.000219,2]
[330069067,1718987446723,-23648.04574157,0.000219,2]
[330069068,1718987446733,-155.0,0.000219,2]
[330069069,1718987446743,-488.0,0.000219,4]
[330069070,1718987446753,-195.0,0.000219,4]
[330069071,1718987446763,-343.3,0.000219,4]
[330069072,1718987446773,-2827.40811708,0.00021906,2]
[330069073,1718987446783,-3729.38134595,0.00021907,2]
[330069074,1718987446795,-7974.61459988,0.00021907,2]
[330069075,1718987446815,-2260.99231028,0.00021907,2]
[330069076,1718987446827,-2401.02711241,0.00021907,2]
[330069077,1718987446839,-269.06781082,0.00021907,2]
[330069078,1718987446851,-1788.83831452,0.00021907,2]
[330069079,1718987446863,-258.31960914,0.00021907,2]
[330069080,1718987446882,-404.48230813,0.00021907,2]
[330069081,1718987446895,-1508.12163602,0.00021907,2]
[330069082,1718987446908,-3877.46310139,0.00021907,2]
[330069088,1718987554534,517.62,0.00020732,30]
[330069091,1718987571846,-442.47162944,0.00013082,2]
[330069092,1718987571870,-196.12854204,0.00013082,2]
[330069093,1718987571894,-7391.83,0.00020359,2]
[330069094,1718987571917,-1000.0,0.00020739,2]
[330069095,1718987571942,-250.0,0.0002075,2]
[330069096,1718987571967,-1000.0,0.000209,2]
[330069097,1718987571990,-4594.1367,0.000209,2]
[330069098,1718987572012,-388.9599,0.000209,2]
[330069099,1718987572036,-7424.93,0.0002101,2]
[330069100,1718987572059,-158.80388924,0.00021369,2]
[330069101,1718987572081,-345.95893679,0.00021467,2]
[330069102,1718987572104,-150.13,0.00021472,2]
[330069103,1718987572131,-437.90975551,0.00021477,2]
[330069104,1718987572156,-437.90975551,0.00021477,2]
[330069105,1718987572180,-1216.2936991,0.00021478,2]
[330069106,1718987572204,-363.71116501,0.00021685,5]
[330069107,1718987572230,-7500.0,0.00021807,2]
[330069108,1718987572256,-159.38148323,0.00021817,2]
[330069109,1718987572279,-155.0,0.00021818,2]
[330069110,1718987572303,-645.02032153,0.00021819,2]
[330069111,1718987572328,-155.0,0.00021852,2]
[330069112,1718987572352,-163.5767579,0.00021853,2]
[330069113,1718987572376,-269.20894973,0.00021853,2]
[330069114,1718987572398,-491.4546726,0.00021857,2]
[330069115,1718987572424,-364.67222398,0.00021858,2]
[330069116,1718987572446,-364.67222398,0.00021858,2]
[330069117,1718987572469,-1133.53475068,0.00021858,2]
[330069118,1718987572492,-955.49830246,0.00021872,2]
[330069119,1718987572515,-326.69444584,0.00021873,2]
[330069120,1718987572540,-155.0,0.00021873,2]
[330069121,1718987572563,-217.79404424,0.00021874,2]
[330069122,1718987572587,-504.58,0.00021897,3]
[330069123,1718987572611,-209.38100041,0.00021906,2]
[330069124,1718987572635,-5907.85263176,0.00021906,2]
[330069125,1718987572659,-199581.48925746,0.00021907,2]
[330069126,1718987572684,-800.84762881,0.00021907,2]
[330069127,1718987572708,-169.48516651,0.00021907,2]
[330069128,1718987572733,-982.20294,0.00021907,2]
[330069129,1718987572758,-150.0,0.00021908,2]
[330069130,1718987572783,-2597.45695127,0.00021915,2]
[330069131,1718987572806,-155.0,0.00021915,2]
[330069132,1718987572828,-531.96070658,0.00021916,2]
[330069133,1718987572851,-529.20485847,0.00021916,2]
[330069134,1718987572874,-163.56645458,0.00021916,2]
[330069135,1718987572896,-271.48274314,0.00021916,2]
[330069136,1718987572920,-269.44071926,0.00021916,2]
[330069137,1718987572942,-2827.40811708,0.00021916,2]
[330069138,1718987572965,-473.46909233,0.00021916,2]
[330069139,1718987572988,-499.40340335,0.00021916,2]
[330069140,1718987573009,-5000.0,0.00021916,2]
[330069141,1718987573032,-10000.0,0.00021916,2]
[330069142,1718987573054,-266.78245834,0.00021916,2]
[330069143,1718987573076,-378.479245,0.00021916,2]
[330069144,1718987573099,-2198.0801445,0.00021916,2]
[330069145,1718987573122,-155.0,0.00021916,2]
[330069146,1718987573144,-3963.22039009,0.00021916,2]
[330069147,1718987573168,-187.89378223,0.00021916,2]
[330069148,1718987573191,-366.0285791,0.00021916,2]
[330069149,1718987573213,-202.40067256,0.00021916,2]
[330069150,1718987573235,-296.20867588,0.00021916,2]
[330069151,1718987573258,-830.71890196,0.00021916,2]
[330069152,1718987573282,-526.28955324,0.00021916,2]
[330069153,1718987573491,-339.36468135,0.00021916,2]
[330069154,1718987573518,-1177.89403127,0.00021916,2]
[330069155,1718987573544,-155.0,0.00021916,2]
[330069156,1718987573569,-1262.77288771,0.00021916,2]
[330069157,1718987573593,-660.11977562,0.00021916,2]
[330069158,1718987573617,-482.76727412,0.00021916,2]
[330069159,1718987573644,-1069.4164457,0.00021916,2]
[330069160,1718987573668,-283.44364674,0.00021916,2]
[330069161,1718987573692,-10000.0,0.00021916,2]
[330069162,1718987573718,-3105.79028967,0.00021916,2]
[330069163,1718987573745,-378.479245,0.00021916,2]
[330069164,1718987573770,-1262.77288771,0.00021916,2]
[330069165,1718987573797,-3963.22039009,0.00021916,2]
[330069166,1718987573826,-155.0,0.00021916,2]
[330069167,1718987573850,-482.76727412,0.00021916,2]
[330069168,1718987573872,-155.0,0.00021916,2]
[330069169,1718987573896,-158.21632429,0.00021916,2]
[330069170,1718987573921,-285.13970872,0.00021916,2]
[330069171,1718987573946,-4952.13040318,0.00021916,2]
[330069172,1718987573970,-526.28955324,0.00021916,2]
[330069173,1718987573993,-918.80279174,0.00021916,2]
[330069174,1718987574017,-202.40067256,0.00021916,2]
[330069175,1718987574044,-744.0,0.00021917,2]
[330069176,1718987574067,-500.0,0.00021917,4]
[330069177,1718987574090,-500.0,0.00021917,4]
[330069178,1718987574113,-500.0,0.00021917,4]
[330069179,1718987574137,-637.19511725,0.00021917,4]
[330069180,1718987574160,-500.0,0.00021917,4]
[330069181,1718987574183,-500.0,0.00021917,4]
[330069182,1718987574206,-522.11,0.00021917,4]
[330069183,1718987574229,-555.31846216,0.00021917,4]
[330069184,1718987574252,-500.0,0.00021917,4]
[330069185,1718987574275,-500.0,0.00021917,4]
[330069186,1718987574306,-717.33,0.00021917,4]
[330069187,1718987574332,-500.0,0.00021917,4]
[330069188,1718987574355,-1161.0,0.00021917,4]
[330069189,1718987574381,-500.0,0.00021917,4]
[330069190,1718987574404,-500.0,0.00021917,4]
[330069191,1718987574432,-500.0,0.00021917,4]
[330069192,1718987574456,-500.0,0.00021917,4]
[330069193,1718987574483,-963.53,0.00021917,4]
[330069194,1718987574507,-500.0,0.00021917,4]
[330069195,1718987574535,-500.0,0.00021917,4]
[330069196,1718987574560,-500.0,0.00021917,4]
[330069197,1718987574584,-556.94,0.00021917,4]
[330069198,1718987574609,-727.53,0.00021917,4]
[330069199,1718987574632,-500.0,0.00021917,4]
[330069200,1718987574657,-500.0,0.00021917,4]
[330069201,1718987574682,-500.0,0.00021917,4]
[330069202,1718987574707,-500.0,0.00021917,4]
[330069203,1718987574733,-968.47,0.00021917,4]
[330069204,1718987574758,-500.0,0.00021917,4]
[330069205,1718987574784,-500.0,0.00021917,4]
[330069206,1718987574808,-500.0,0.00021917,2]
[330069207,1718987574832,-745.8,0.00021917,4]
[330069208,1718987574857,-1424.78,0.00021917,4]
[330069209,1718987574882,-500.0,0.00021917,4]
[330069210,1718987574907,-812.96,0.00021917,4]
[330069211,1718987574931,-500.0,0.00021917,4]
[330069212,1718987574955,-500.0,0.00021917,4]
[330069213,1718987574982,-948.5,0.00021917,4]
[330069214,1718987575008,-500.0,0.00021917,4]
[330069215,1718987575035,-500.0,0.00021917,4]
[330069216,1718987575059,-500.0,0.00021917,4]
[330069217,1718987575084,-500.0,0.00021917,4]
[330069218,1718987575111,-791.72,0.00021917,4]
[330069219,1718987575137,-500.0,0.00021917,4]
[330069220,1718987575162,-523.17,0.00021917,4]
[330069221,1718987575188,-500.0,0.00021917,4]
[330069222,1718987575213,-595.96,0.00021917,4]
[330069223,1718987575241,-806.48,0.00021917,4]
[330069224,1718987575272,-887.18,0.00021917,4]
[330069225,1718987575299,-669.82,0.00021917,4]
[330069226,1718987575325,-500.0,0.00021917,4]
[330069227,1718987575354,-500.0,0.00021917,4]
[330069228,1718987575381,-522.55170028,0.00021917,4]
[330069229,1718987575406,-500.0,0.00021917,4]
[330069230,1718987575432,-500.0,0.00021917,4]
[330069231,1718987575458,-500.0,0.00021917,4]
[330069232,1718987575485,-500.0,0.00021917,4]
[330069233,1718987575514,-825.66,0.00021917,4]
[330069234,1718987575541,-500.0,0.00021917,4]
[330069235,1718987575566,-1007.63,0.00021917,4]
[330069236,1718987575592,-527.6,0.00021917,4]
[330069237,1718987575619,-500.0,0.00021917,4]
[330069238,1718987575645,-500.0,0.00021917,4]
[330069239,1718987576006,-748.17,0.00021917,4]
[330069240,1718987576035,-500.0,0.00021917,4]
[330069241,1718987576062,-500.0,0.00021917,4]
[330069242,1718987576088,-500.0,0.00021917,4]
[330069243,1718987576112,-630.9,0.00021917,4]
[330069244,1718987576137,-854.49,0.00021917,4]
[330069245,1718987576169,-503.09,0.00021917,4]
[330069246,1718987576195,-1084.11,0.00021917,4]
[330069247,1718987576219,-500.0,0.00021917,4]
[330069248,1718987576244,-857.63,0.00021917,4]
[330069249,1718987576269,-500.0,0.00021917,4]
[330069250,1718987576294,-500.0,0.00021917,4]
[330069251,1718987576319,-592.08994706,0.00021917,4]
[330069252,1718987576348,-511.62625129,0.00021917,4]
[330069253,1718987576374,-1197.67,0.00021917,4]
[330069254,1718987576398,-500.0,0.00021917,4]
[330069255,1718987576426,-1329.84,0.00021917,4]
[330069256,1718987576451,-697.99,0.00021917,4]
[330069257,1718987576477,-500.0,0.00021917,4]
[330069258,1718987576501,-500.0,0.00021917,4]
[330069259,1718987576525,-500.0,0.00021917,4]
[330069260,1718987576550,-500.0,0.00021917,4]
[330069261,1718987576575,-500.0,0.00021917,4]
[330069262,1718987576600,-500.0,0.00021917,4]
[330069263,1718987576624,-500.0,0.00021917,4]
[330069264,1718987576649,-569.93,0.00021917,4]
[330069265,1718987576674,-500.0,0.00021917,4]
[330069266,1718987576698,-1122.75,0.00021917,4]
[330069267,1718987576724,-500.0,0.00021917,4]
[330069268,1718987576748,-500.0,0.00021917,4]
[330069269,1718987576772,-785.84,0.00021917,4]
[330069270,1718987576797,-627.93,0.00021917,4]
[330069271,1718987576825,-842.59,0.00021917,4]
[330069272,1718987576848,-614.38,0.00021917,4]
[330069273,1718987576871,-500.0,0.00021917,4]
[330069274,1718987576895,-585.26,0.00021917,4]
[330069275,1718987576919,-500.0,0.00021917,4]
[330069276,1718987576942,-500.0,0.00021917,4]
[330069277,1718987576965,-500.0,0.00021917,4]
[330069278,1718987576990,-500.0,0.00021917,4]
[330069279,1718987577013,-500.0,0.00021917,4]
[330069280,1718987577043,-500.0,0.00021917,4]
[330069281,1718987577066,-500.0,0.00021917,4]
[330069282,1718987577091,-500.0,0.00021917,4]
[330069283,1718987577115,-500.0,0.00021917,4]
[330069284,1718987577139,-500.0,0.00021917,4]
[330069285,1718987577162,-532.12,0.00021917,4]
[330069286,1718987577186,-1166.84,0.00021917,4]
[330069287,1718987577210,-500.0,0.00021917,4]
[330069288,1718987577234,-500.0,0.00021917,4]
[330069289,1718987577258,-500.0,0.00021917,4]
[330069290,1718987577283,-500.0,0.00021917,4]
[330069291,1718987577310,-840.1,0.00021917,4]
[330069292,1718987577337,-500.0,0.00021917,4]
[330069293,1718987577362,-500.0,0.00021917,4]
[330069294,1718987577387,-975.27,0.00021917,4]
[330069295,1718987577413,-558.12,0.00021917,4]
[330069296,1718987577438,-1120.29,0.00021917,4]
[330069297,1718987577462,-500.0,0.00021917,4]
[330069298,1718987577486,-883.89,0.00021917,4]
[330069299,1718987577512,-500.0,0.00021917,4]
[330069300,1718987577537,-500.0,0.00021917,4]
[330069301,1718987577562,-500.0,0.00021917,4]
[330069302,1718987577586,-500.0,0.00021917,4]
[330069303,1718987577610,-523.0,0.00021917,4]
[330069304,1718987577633,-500.0,0.00021917,4]
[330069305,1718987577658,-543.46119632,0.00021917,4]
[330069306,1718987577682,-629.8,0.00021917,4]
[330069307,1718987577706,-500.0,0.00021917,4]
[330069308,1718987577730,-958.24,0.00021917,4]
[330069309,1718987577754,-613.86,0.00021917,4]
[330069310,1718987577778,-512.65,0.00021917,4]
[330069311,1718987577805,-500.0,0.00021917,2]
[330069312,1718987577829,-1064.71,0.00021917,4]
[330069313,1718987577854,-500.0,0.00021917,4]
[330069314,1718987577878,-565.65,0.00021917,4]
[330069315,1718987577901,-500.0,0.00021917,4]
[330069316,1718987577926,-500.0,0.00021917,4]
[330069317,1718987577950,-500.0,0.00021917,4]
[330069318,1718987577980,-690.71,0.00021917,4]
[330069319,1718987578004,-500.0,0.00021917,4]
[330069320,1718987578028,-500.0,0.00021917,4]
[330069321,1718987578053,-500.0,0.00021917,4]
[330069322,1718987578076,-318.2294052,0.00021917,4]
[330069323,1718987578100,-500.0,0.00021917,4]
[330069324,1718987578124,-1124.0,0.00021917,4]
[330069325,1718987578148,-500.0,0.00021917,4]
[330069326,1718987578172,-625.9,0.00021917,4]
[330069327,1718987578196,-666.54,0.00021917,4]
[330069328,1718987578220,-500.0,0.00021917,4]
[330069329,1718987578244,-1581.3,0.00021917,4]
[330069330,1718987578268,-500.0,0.00021917,4]
[330069331,1718987578293,-801.38,0.00021917,4]
[330069332,1718987578317,-500.0,0.00021917,4]
[330069333,1718987578345,-541.47,0.00021917,4]
[330069334,1718987578369,-680.78,0.00021917,4]
[330069335,1718987578392,-500.0,0.00021917,4]
[330069337,1718987578420,-233.8869162,0.00021917,4]
[330069338,1718987578444,-500.0,0.00021917,4]
[330069339,1718987578468,-787.36,0.00021917,4]
[330069340,1718987578492,-500.0,0.00021917,4]
[330069341,1718987578516,-156.90613,0.00021917,2]
[330069342,1718987578542,-500.0,0.00021917,4]
[330069343,1718987578565,-562.13,0.00021917,4]
[330069344,1718987578590,-552.65,0.00021917,4]
[330069345,1718987578613,-740.98,0.00021917,4]
[330069346,1718987578637,-952.61,0.00021917,4]
[330069347,1718987578661,-1135.71,0.00021917,4]
[330069348,1718987578686,-500.0,0.00021917,4]
[330069349,1718987578709,-500.0,0.00021917,4]
[330069350,1718987578733,-500.0,0.00021917,4]
[330069351,1718987578759,-500.0,0.00021917,4]
[330069352,1718987578785,-497.03133282,0.00021917,4]
[330069353,1718987578807,-500.0,0.00021917,4]
[330069354,1718987578829,-500.0,0.00021917,4]
[330069355,1718987578853,-500.0,0.00021917,4]
[330069356,1718987578877,-500.0,0.00021917,4]
[330069357,1718987578900,-500.0,0.00021917,4]
[330069358,1718987578923,-843.52,0.00021917,4]
[330069359,1718987578946,-500.0,0.00021917,4]
[330069360,1718987578972,-500.0,0.00021917,4]
[330069361,1718987578996,-500.0,0.00021917,4]
[330069362,1718987579020,-500.0,0.00021917,4]
[330069363,1718987579046,-500.0,0.00021917,4]
[330069364,1718987579070,-500.0,0.00021917,4]
[330069365,1718987579093,-500.0,0.00021917,4]
[330069366,1718987579118,-642.58285994,0.00021917,4]
[330069367,1718987579141,-500.0,0.00021917,4]
[330069368,1718987579165,-500.0,0.00021917,4]
[330069369,1718987579188,-500.0,0.00021917,4]
[330069370,1718987579212,-500.0,0.00021917,4]
[330069371,1718987579236,-500.0,0.00021917,4]
[330069372,1718987579260,-624.48,0.00021917,4]
[330069373,1718987579286,-759.07,0.00021917,4]
[330069374,1718987579308,-209.58,0.00021917,4]
[330069375,1718987579335,-500.0,0.00021917,4]
[330069376,1718987579360,-770.17,0.00021917,4]
[330069377,1718987579386,-500.0,0.00021917,4]
[330069378,1718987579413,-500.0,0.00021917,4]
[330069379,1718987579437,-374.23735833,0.00021917,4]
[330069380,1718987579461,-500.0,0.00021917,4]
[330069381,1718987579485,-627.91,0.00021917,4]
[330069382,1718987579509,-500.0,0.00021917,4]
[330069383,1718987579534,-1304.29,0.00021917,4]
[330069384,1718987579558,-500.0,0.00021917,4]
[330069385,1718987579582,-500.0,0.00021917,4]
[330069386,1718987579605,-419.40951401,0.00021917,4]
[330069387,1718987579628,-500.0,0.00021917,4]
[330069388,1718987579651,-500.0,0.00021917,4]
[330069389,1718987579675,-581.03,0.00021917,4]
[330069390,1718987579699,-503.83305057,0.00021917,4]
[330069391,1718987579722,-500.0,0.00021917,4]
[330069392,1718987579747,-500.0,0.00021917,4]
[330069393,1718987579770,-1422.04,0.00021917,4]
[330069394,1718987579796,-500.0,0.00021917,4]
[330069395,1718987579822,-500.0,0.00021917,4]
[330069396,1718987579849,-1008.35,0.00021917,4]
[330069397,1718987579885,-699.83,0.00021917,4]
[330069398,1718987579914,-500.0,0.00021917,4]
[330069399,1718987579949,-500.0,0.00021917,4]
[330069400,1718987579985,-818.8,0.00021917,4]
[330069401,1718987580020,-558.75,0.00021917,4]